bitfinex/quotes_BTCUSD_20241101
["timestamp","ask_amount","ask_price","bid_price","bid_amount"]
[1730497129316,0.13845525,68977.0,68975.0,0.145978]
[1730497129521,0.14345525,68977.0,68975.0,0.146978]
[1730497130128,0.14345525,68977.0,68975.0,0.002]
[1730497130817,0.14345525,68977.0,68974.0,0.14498]
[1730497131024,0.13845525,68977.0,68975.0,0.144979]
[1730497131257,0.14345525,68977.0,68975.0,0.146979]
[1730497131490,0.14345525,68977.0,68976.0,0.144977]
[1730497131901,0.14845525,68977.0,68975.0,0.002]
[1730497132285,0.14845525,68977.0,68976.0,0.002]
[1730497132735,0.13845525,68977.0,68976.0,0.146977]
[1730497133496,0.1,68983.0,68976.0,0.002]
[1730497133700,0.13845525,68982.0,68981.0,0.144967]
[1730497134967,0.13845525,68982.0,68981.0,0.145967]
[1730497135172,0.14345525,68982.0,68981.0,0.146967]
[1730497135405,0.005,68982.0,68981.0,0.222667]
[1730497135593,0.21871713,68994.0,68983.0,0.289924]
[1730497135749,0.144946,68991.0,68987.0,0.144953]
[1730497135945,0.13845525,68990.0,68987.0,0.144953]
[1730497136542,0.13845525,68990.0,68988.0,0.144951]
[1730497137143,0.13845525,68990.0,68987.0,0.144954]
[1730497137705,0.13845525,68990.0,68989.0,0.14495]
[1730497137961,0.14345525,68990.0,68989.0,0.14495]
[1730497138143,0.289901,68989.0,68978.0,0.002]
[1730497138339,0.13845525,68988.0,68987.0,0.001]
[1730497138545,0.28340725,68988.0,68987.0,0.002]
[1730497138763,0.28340725,68988.0,68987.0,0.001]
[1730497138962,0.289912,68987.0,68981.0,0.144967]
[1730497139186,0.28341225,68986.0,68981.0,0.144967]
[1730497139616,0.28341225,68986.0,68983.0,0.144962]
[1730497140588,0.28341225,68986.0,68982.0,0.144964]
[1730497140794,0.28341225,68986.0,68981.0,0.289934]
[1730497141058,0.28341225,68986.0,68982.0,0.144965]
[1730497141204,0.28341225,68986.0,68983.0,0.144962]
[1730497141205,0.28841225,68986.0,68983.0,0.144962]
[1730497141429,0.28841225,68986.0,68981.0,0.291934]
[1730497141430,0.13845525,68986.0,68985.0,0.144959]
[1730497141638,0.13845525,68986.0,68985.0,0.223659]
[1730497141803,0.14345525,68986.0,68985.0,0.223659]
[1730497143713,0.13845525,68986.0,68985.0,0.223659]
[1730497143910,0.14345525,68986.0,68985.0,0.223659]
[1730497144321,0.13845525,68986.0,68985.0,0.224659]
[1730497144523,0.14345525,68986.0,68985.0,0.225659]
[1730497146233,0.005,68986.0,68985.0,0.225659]
[1730497146499,0.00664,68986.0,68985.0,0.225659]
[1730497147143,0.00664,68986.0,68985.0,0.227659]
[1730497147354,0.00164,68986.0,68985.0,0.226659]
[1730497147788,0.00664,68986.0,68985.0,0.225659]
[1730497148029,0.00664,68986.0,68985.0,0.224659]
[1730497148239,0.00664,68986.0,68985.0,0.226659]
[1730497148655,0.00664,68986.0,68985.0,0.145959]
[1730497149189,0.02007844,68986.0,68985.0,0.145959]
[1730497149608,0.02007844,68986.0,68985.0,0.147959]
[1730497150038,0.02007793,68986.0,68985.0,0.147959]
[1730497150211,0.02007793,68986.0,68985.0,0.226659]
[1730497150625,0.00664,68986.0,68985.0,0.226659]
[1730497150977,0.02008782,68986.0,68985.0,0.226659]
[1730497154254,0.02010032,68986.0,68985.0,0.226659]
[1730497154591,0.00664,68986.0,68985.0,0.226659]
[1730497154863,0.02010023,68986.0,68985.0,0.226659]
[1730497156221,0.02010023,68986.0,68985.0,0.313829]
[1730497156443,0.02010023,68986.0,68985.0,0.224659]
[1730497159231,0.02010023,68986.0,68985.0,0.226659]
[1730497160539,0.00664,68986.0,68985.0,0.226659]
[1730497160736,0.02011861,68986.0,68985.0,0.226659]
[1730497161296,0.00664,68986.0,68985.0,0.22955781]
[1730497161499,0.02012031,68986.0,68985.0,0.226659]
[1730497161721,0.00664,68986.0,68985.0,0.226659]
[1730497161921,0.02011944,68986.0,68985.0,0.226659]
[1730497162123,0.01511944,68986.0,68985.0,0.226659]
[1730497162531,0.00164,68986.0,68985.0,0.226659]
[1730497162742,0.00164,68986.0,68985.0,0.225659]
[1730497162946,0.01512108,68986.0,68985.0,0.225659]
[1730497163065,0.01912108,68986.0,68985.0,0.226659]
[1730497163292,0.02312108,68986.0,68985.0,0.226659]
[1730497164740,0.02312108,68986.0,68985.0,0.23455771]
[1730497164934,0.00964,68986.0,68985.0,0.33485771]
[1730497165212,0.00964,68986.0,68985.0,0.433959]
[1730497165417,0.00964,68986.0,68985.0,0.431959]
[1730497165853,0.00564,68986.0,68985.0,0.432959]
[1730497166054,0.00564,68986.0,68985.0,0.43655134]
[1730497166254,0.00564,68986.0,68985.0,0.44155134]
[1730497166383,0.00164,68986.0,68985.0,0.44155134]
[1730497167011,0.00264,68986.0,68985.0,0.45555134]
[1730497168215,0.00264,68986.0,68985.0,0.68117659]
[1730497168722,0.00264,68986.0,68985.0,0.71019659]
[1730497169371,0.00164,68986.0,68985.0,0.69319659]
[1730497169799,0.00264,68986.0,68985.0,0.72119659]
[1730497170080,0.00264,68986.0,68985.0,0.70719659]
[1730497170293,0.001642,68994.0,68993.0,0.244112]
[1730497170491,0.001642,68994.0,68993.0,0.65526534]
[1730497170692,0.001642,68994.0,68993.0,0.65036725]
[1730497171980,0.001642,68994.0,68993.0,0.67938725]
[1730497172533,0.001642,68994.0,68993.0,0.70638725]
[1730497172749,0.001642,68994.0,68993.0,0.72038725]
[1730497172944,0.00164,69004.0,68993.0,0.72038725]
[1730497172945,0.00164,69004.0,69003.0,0.244091]
[1730497173152,0.00164,69004.0,69003.0,0.55234625]
[1730497173366,0.00164,69004.0,69003.0,0.57936625]
[1730497173755,0.00164,69004.0,69003.0,0.58336625]
[1730497174206,0.00164,69004.0,69003.0,0.59736625]
[1730497174679,0.00164,69004.0,69003.0,0.369741]
[1730497175541,0.00164,69004.0,69003.0,0.355741]
[1730497175769,0.00164,69004.0,69003.0,0.369741]
[1730497176015,0.00164,69004.0,69003.0,0.381741]
[1730497176449,0.00164,69004.0,69003.0,0.369741]
[1730497176682,0.00164,69004.0,69003.0,0.367741]
[1730497176905,0.00164,69004.0,69003.0,0.381741]
[1730497177114,0.00164,69004.0,69003.0,0.383741]
[1730497177343,0.00164,69004.0,69003.0,0.174921]
[1730497177562,0.00164,69004.0,69003.0,0.028]
[1730497177764,0.00164,69004.0,69003.0,0.03]
[1730497177981,0.29846558,69004.0,69003.0,0.028]
[1730497178189,0.28501425,69004.0,69003.0,0.028]
[1730497178439,0.37798611,69004.0,69003.0,0.028]
[1730497178647,0.29846557,69004.0,69003.0,0.014]
[1730497178858,0.29846557,69004.0,68997.0,0.144932]
[1730497178859,0.29846557,69004.0,68998.0,0.002]
[1730497179068,0.14009525,69004.0,69003.0,0.028]
[1730497179283,0.01509141,69004.0,69003.0,0.172921]
[1730497179502,0.01509141,69004.0,69003.0,0.144921]
[1730497179503,0.00164,69004.0,69003.0,0.144921]
[1730497179738,0.00164,69004.0,69003.0,0.148921]
[1730497180366,0.00164,69004.0,69003.0,0.147921]
[1730497182083,0.00164,69004.0,69003.0,0.002]
[1730497182705,0.00164,69004.0,69003.0,0.004]
[1730497184085,0.00164,69004.0,69003.0,0.002]
[1730497184305,0.00164,69004.0,69003.0,0.004]
[1730497185318,0.00164,69004.0,69003.0,0.002]
[1730497185526,0.00164,69004.0,69003.0,0.004]
[1730497188023,0.00164,69004.0,69003.0,0.148921]
[1730497188232,0.00164,69004.0,69003.0,0.146921]
[1730497189679,0.00164,69004.0,69003.0,0.14981917]
[1730497190323,0.00164,69004.0,69003.0,0.146921]
[1730497190920,0.00164,69004.0,69003.0,0.15181904]
[1730497191126,0.00164,69004.0,69003.0,0.14981904]
[1730497192096,0.00164,69004.0,69003.0,0.14481904]
[1730497194687,0.00164,69004.0,69003.0,0.14681904]
[1730497194919,0.00164,69004.0,69003.0,0.14481904]
[1730497195132,0.00164,69004.0,69003.0,0.14681904]
[1730497195754,0.00164,69004.0,69003.0,0.14481904]
[1730497196369,0.00164,69004.0,69003.0,0.14681904]
[1730497197354,0.00164,69004.0,69003.0,0.14481904]
[1730497197560,0.00164,69004.0,69003.0,0.14681904]
[1730497199171,0.00164,69004.0,69003.0,0.24121904]
[1730497199576,0.00164,69004.0,69003.0,0.238321]
[1730497200284,0.14009525,69004.0,69003.0,0.141921]
[1730497200493,0.14009525,69004.0,68998.0,0.290678]
[1730497200494,0.230929,68999.0,68998.0,0.000819]
[1730497200722,0.49866796,68999.0,68998.0,0.000819]
[1730497200941,0.49866796,68999.0,68981.0,0.21707513]
[1730497200942,0.14994,68994.0,68981.0,0.21707513]
[1730497201208,0.75888005,68994.0,68981.0,0.21707513]
[1730497201416,0.167965,68982.0,68981.0,0.21207513]
[1730497201621,0.144986,68972.0,68971.0,0.21707513]
[1730497201838,0.2969301,68972.0,68971.0,0.21707513]
[1730497202055,0.023,68970.0,68963.0,0.29001]
[1730497202271,0.023,68970.0,68964.0,0.145002]
[1730497202272,0.35893636,68969.0,68964.0,0.145002]
[1730497202551,0.35893636,68969.0,68967.0,0.002]
[1730497202757,0.35893636,68969.0,68955.0,0.005]
[1730497202758,0.289989,68968.0,68955.0,0.005]
[1730497202959,0.24007513,68970.0,68951.0,0.290058]
[1730497202960,0.13845525,68967.0,68954.0,0.092]
[1730497203188,0.13845525,68967.0,68958.0,0.002]
[1730497203189,0.01344399,68966.0,68958.0,0.002]
[1730497203448,0.16145525,68965.0,68955.0,0.002]
[1730497203673,0.16145525,68965.0,68953.0,0.002]
[1730497203674,0.145024,68954.0,68953.0,0.002]
[1730497203903,0.145024,68954.0,68947.0,0.21907513]
[1730497203904,0.145032,68950.0,68947.0,0.21907513]
[1730497204122,0.145028,68952.0,68951.0,0.002]
[1730497204372,0.145028,68952.0,68948.0,0.002]
[1730497204373,0.13845525,68952.0,68948.0,0.002]
[1730497204622,0.14504,68947.0,68944.0,0.002]
[1730497204839,0.42851925,68951.0,68944.0,0.002]
[1730497205069,0.42851925,68951.0,68944.0,0.147043]
[1730497205070,0.435097,68950.0,68944.0,0.147043]
[1730497205317,0.435097,68950.0,68944.0,0.002]
[1730497205318,0.145039,68947.0,68944.0,0.002]
[1730497205580,0.145042,68946.0,68944.0,0.002]
[1730497205792,0.28349725,68946.0,68944.0,0.002]
[1730497206018,0.28349725,68946.0,68944.0,0.001]
[1730497206235,0.13845525,68946.0,68945.0,0.002]
[1730497206455,0.13845525,68946.0,68944.0,0.145044]
[1730497206889,0.20033637,68946.0,68944.0,0.145044]
[1730497207107,0.20033637,68946.0,68944.0,0.146044]
[1730497207537,0.20033637,68946.0,68945.0,0.002]
[1730497207973,0.20033637,68946.0,68944.0,0.146044]
[1730497208411,0.21133637,68946.0,68944.0,0.146044]
[1730497209090,0.21133637,68946.0,68944.0,0.147044]
[1730497209317,0.21233637,68946.0,68944.0,0.147044]
[1730497210670,0.15045525,68946.0,68944.0,0.147044]
[1730497211032,0.15045525,68946.0,68945.0,0.145043]
[1730497211233,0.15045525,68946.0,68945.0,0.147043]
[1730497211433,0.15045525,68946.0,68945.0,0.145043]
[1730497211992,0.15045525,68946.0,68937.0,0.00082]
[1730497211993,0.023,68943.0,68937.0,0.00082]
[1730497212221,0.145057,68938.0,68937.0,0.00082]
[1730497212431,0.28351225,68938.0,68937.0,0.00082]
[1730497213279,0.28351225,68938.0,68937.0,0.00282]
[1730497213482,0.13845525,68938.0,68937.0,0.00382]
[1730497213698,0.13845525,68938.0,68937.0,0.00182]
[1730497213961,0.13845525,68938.0,68937.0,0.00382]
[1730497213962,0.28351225,68938.0,68937.0,0.00382]
[1730497214373,0.32753164,68938.0,68937.0,0.00282]
[1730497214803,0.35053164,68938.0,68937.0,0.00082]
[1730497215012,0.35053164,68938.0,68937.0,0.00182]
[1730497215225,0.36253164,68938.0,68937.0,0.00282]
[1730497215843,0.35053164,68938.0,68937.0,0.00082]
[1730497215969,0.35553164,68938.0,68937.0,0.00182]
[1730497216163,0.36753164,68938.0,68937.0,0.00282]
[1730497217215,0.38083159,68938.0,68937.0,0.00282]
[1730497217387,0.36753164,68938.0,68937.0,0.00282]
[1730497217846,0.32351225,68938.0,68937.0,0.00282]
[1730497218719,0.42351225,68938.0,68937.0,0.00282]
[1730497219819,0.41851225,68938.0,68937.0,0.00282]
[1730497220824,0.15045525,68938.0,68937.0,0.00282]
[1730497221027,0.15045525,68938.0,68937.0,0.147879]
[1730497222191,0.16245525,68938.0,68937.0,0.146879]
[1730497222601,0.17245525,68938.0,68937.0,0.146879]
[1730497222859,0.17345525,68938.0,68937.0,0.147879]
[1730497223064,0.012,68938.0,68937.0,0.147879]
[1730497226680,0.012,68938.0,68937.0,0.252579]
[1730497226910,0.012,68938.0,68937.0,0.333879]
[1730497227108,0.012,68938.0,68937.0,0.332879]
[1730497227109,0.001,68938.0,68937.0,0.332879]
[1730497227535,0.004,68938.0,68937.0,0.332879]
[1730497227736,0.004,68938.0,68937.0,0.56050425]
[1730497227885,0.21707513,68956.0,68955.0,0.145022]
[1730497228346,0.2304486,68956.0,68955.0,0.221322]
[1730497228471,0.01337347,68956.0,68955.0,0.221322]
[1730497229086,0.023,68964.0,68955.0,0.0763]
[1730497229285,0.023,68964.0,68961.0,0.145008]
[1730497229286,0.023,68962.0,68961.0,0.145008]
[1730497229512,0.01343377,68962.0,68961.0,0.145008]
[1730497231345,0.21707513,68967.0,68956.0,0.290037]
[1730497231547,0.02242912,68962.0,68961.0,0.147009]
[1730497231929,0.02346981,68962.0,68961.0,0.146009]
[1730497232145,0.01546981,68962.0,68961.0,0.145009]
[1730497232792,0.01646981,68962.0,68961.0,0.146009]
[1730497234772,0.02546981,68962.0,68961.0,0.147009]
[1730497238668,0.01204069,68962.0,68961.0,0.147009]
[1730497240781,0.01204069,68962.0,68961.0,0.147829]
[1730497252346,0.02549506,68962.0,68961.0,0.147829]
[1730497253214,0.01204069,68962.0,68961.0,0.147829]
[1730497253429,0.02550047,68962.0,68961.0,0.147829]
[1730497254292,0.01204069,68962.0,68961.0,0.147829]
[1730497254503,0.02550901,68962.0,68961.0,0.147829]
[1730497256460,0.03630851,68962.0,68961.0,0.147829]
[1730497258223,0.01204069,68962.0,68961.0,0.147829]
[1730497258454,0.03634333,68962.0,68961.0,0.147829]
[1730497260700,0.0755307,68962.0,68961.0,0.147829]
[1730497261150,0.02284186,68962.0,68961.0,0.147829]
[1730497261368,0.0363535,68962.0,68961.0,0.147829]
[1730497261789,0.02554953,68962.0,68961.0,0.147829]
[1730497261998,0.02350884,68962.0,68961.0,0.147829]
[1730497262641,0.02350884,68962.0,68961.0,0.149829]
[1730497262875,0.02350884,68962.0,68961.0,0.147829]
[1730497263961,0.02350884,68962.0,68961.0,0.149829]
[1730497264174,0.02350884,68962.0,68961.0,0.226429]
[1730497264402,0.02350884,68962.0,68961.0,0.322029]
[1730497264642,0.01,68962.0,68961.0,0.322029]
[1730497264857,0.001,68962.0,68961.0,0.321029]
[1730497265121,0.01080611,68974.0,68973.0,0.002]
[1730497265335,0.16276926,68974.0,68973.0,0.144983]
[1730497266604,0.16376926,68974.0,68973.0,0.145983]
[1730497267919,0.17176926,68974.0,68973.0,0.146983]
[1730497268550,0.17176221,68974.0,68973.0,0.146983]
[1730497268865,0.1609561,68974.0,68973.0,0.146983]
[1730497269689,0.1609561,68974.0,68973.0,0.148983]
[1730497272355,0.16094572,68974.0,68973.0,0.148983]
[1730497272970,0.02249047,68974.0,68973.0,0.148983]
[1730497276139,0.02248462,68974.0,68973.0,0.148983]
[1730497276775,0.009,68974.0,68973.0,0.148983]
[1730497276979,0.02248369,68974.0,68973.0,0.148983]
[1730497279975,0.009,68974.0,68973.0,0.148983]
[1730497280197,0.02248029,68974.0,68973.0,0.148983]
[1730497283761,0.02248209,68974.0,68973.0,0.148983]
[1730497285899,0.02248209,68974.0,68973.0,0.149803]
[1730497287671,0.02248209,68974.0,68973.0,0.147803]
[1730497290016,0.02248209,68974.0,68973.0,0.223903]
[1730497290977,0.009,68974.0,68973.0,0.22880244]
[1730497291816,0.009,68974.0,68973.0,0.23380244]
[1730497292437,0.009,68974.0,68973.0,0.230903]
[1730497292801,0.00164,68981.0,68980.0,0.002]
[1730497293014,0.01513289,68981.0,68980.0,0.146969]
[1730497293435,0.01513289,68981.0,68980.0,0.14021321]
[1730497294112,0.02313289,68981.0,68980.0,0.14121321]
[1730497294743,0.02413289,68981.0,68980.0,0.14221321]
[1730497295157,0.02413343,68981.0,68980.0,0.14221321]
[1730497296786,0.02413343,68981.0,68980.0,0.32461229]
[1730497297152,0.02413343,68981.0,68980.0,0.32171321]
[1730497297357,0.01064,68981.0,68980.0,0.32671321]
[1730497298472,0.01064,68981.0,68980.0,0.32753321]
[1730497299634,0.01064,68981.0,68980.0,0.32253321]
[1730497301213,0.01064,68981.0,68980.0,0.41470321]
[1730497301675,0.01064,68981.0,68980.0,0.55315846]
[1730497302123,0.01064,68981.0,68980.0,0.58219846]
[1730497302782,0.00964,68981.0,68980.0,0.58119846]
[1730497303003,0.00164,68981.0,68980.0,0.58019846]
[1730497303249,0.00164,68981.0,68980.0,0.58519846]
[1730497303698,0.00164,68981.0,68980.0,0.58019846]
[1730497303902,0.00164,68981.0,68980.0,0.59419846]
[1730497304118,0.00264,68981.0,68980.0,0.60819846]
[1730497304359,0.00264,68981.0,68980.0,0.59419846]
[1730497304577,0.00164,68981.0,68980.0,0.59419846]
[1730497304793,0.00164,68981.0,68980.0,0.58019846]
[1730497305232,0.00164,68981.0,68980.0,0.59419846]
[1730497305904,0.00264,68981.0,68980.0,0.59419846]
[1730497306322,0.00264,68981.0,68980.0,0.69419846]
[1730497306548,0.00264,68981.0,68980.0,0.72355199]
[1730497306549,0.00164,68981.0,68980.0,0.72355199]
[1730497306832,0.001638,68982.0,68981.0,0.01]
[1730497307043,0.001638,68982.0,68980.0,0.43451554]
[1730497307044,0.144967,68981.0,68980.0,0.01482]
[1730497307265,0.19595388,68981.0,68980.0,0.01482]
[1730497307484,0.13845525,68981.0,68980.0,0.02882]
[1730497307698,0.13845525,68981.0,68980.0,0.01482]
[1730497307915,0.13845525,68981.0,68980.0,0.00082]
[1730497309005,0.28442225,68981.0,68980.0,0.00182]
[1730497310396,0.28606225,68981.0,68980.0,0.00182]
[1730497310609,0.29206225,68981.0,68980.0,0.00282]
[1730497311233,0.31506225,68981.0,68980.0,0.00282]
[1730497311887,0.3285192,68981.0,68980.0,0.00282]
[1730497313010,0.31506225,68981.0,68980.0,0.00282]
[1730497314752,0.32852163,68981.0,68980.0,0.00282]
[1730497315308,0.33011081,68981.0,68980.0,0.00282]
[1730497317527,0.33011309,68981.0,68980.0,0.00282]
[1730497318874,0.31665143,68981.0,68980.0,0.00282]
[1730497319101,0.33011404,68981.0,68980.0,0.00282]
[1730497323046,0.37657117,68981.0,68980.0,0.00282]
[1730497323223,0.32852486,68981.0,68980.0,0.00282]
[1730497323439,0.33011096,68981.0,68980.0,0.00282]
[1730497323849,0.32852486,68981.0,68980.0,0.00282]
[1730497324876,0.36083014,68981.0,68980.0,0.00282]
[1730497325055,0.36241904,68981.0,68980.0,0.00282]
[1730497325274,0.36083014,68981.0,68980.0,0.00282]
[1730497325468,0.33011212,68981.0,68980.0,0.00282]
[1730497326014,0.32852322,68981.0,68980.0,0.00282]
[1730497328631,0.30552322,68981.0,68980.0,0.00282]
[1730497329455,0.29206225,68981.0,68980.0,0.00282]
[1730497329920,0.16055325,68981.0,68980.0,0.00282]
[1730497330062,0.022098,68981.0,68980.0,0.243689]
[1730497330261,0.00864,68981.0,68980.0,0.243689]
[1730497332533,0.00864,68981.0,68980.0,0.33058813]
[1730497332734,0.00864,68981.0,68980.0,0.327689]
[1730497332931,0.00864,68981.0,68980.0,0.332689]
[1730497333350,0.00264,68981.0,68980.0,0.331689]
[1730497333581,0.00164,68981.0,68980.0,0.325689]
[1730497333801,0.00864,68981.0,68980.0,0.331689]
[1730497334015,0.00864,68981.0,68980.0,0.326689]
[1730497334442,0.00164,68981.0,68980.0,0.339689]
[1730497334659,0.00164,68981.0,68980.0,0.344689]
[1730497334884,0.00164,68981.0,68980.0,0.339689]
[1730497335115,0.00164,68981.0,68980.0,0.344689]
[1730497335325,0.00164,68981.0,68980.0,0.57031425]
[1730497335748,0.00164,68981.0,68980.0,0.57231425]
[1730497336176,0.00164,68981.0,68980.0,0.58631425]
[1730497336419,0.00164,68981.0,68980.0,0.58431425]
[1730497339194,0.00164,68981.0,68980.0,0.57031425]
[1730497339616,0.00164,68981.0,68980.0,0.55831425]
[1730497339844,0.00164,68981.0,68980.0,0.57231425]
[1730497340100,0.00264,68981.0,68980.0,0.71066962]
[1730497340539,0.00164,68981.0,68980.0,0.71066962]
[1730497340961,0.00264,68981.0,68980.0,0.68131425]
[1730497341190,0.00264,68981.0,68980.0,0.68431425]
[1730497341400,0.00264,68981.0,68980.0,0.67931425]
[1730497341858,0.00264,68981.0,68980.0,0.70835425]
[1730497342063,0.00264,68981.0,68980.0,0.71035425]
[1730497342491,0.00264,68981.0,68980.0,0.71535425]
[1730497342931,0.00264,68981.0,68980.0,0.71035425]
[1730497345932,0.00264,68981.0,68980.0,0.70835425]
[1730497346148,0.00264,68981.0,68980.0,0.71335425]
[1730497346351,0.00264,68981.0,68980.0,0.70835425]
[1730497346593,0.00264,68981.0,68980.0,0.71035425]
[1730497347052,0.00264,68981.0,68980.0,0.70835425]
[1730497347526,0.00264,68981.0,68980.0,0.71035425]
[1730497347731,0.00264,68981.0,68980.0,0.71535425]
[1730497347939,0.00264,68981.0,68980.0,0.75170962]
[1730497349195,0.00264,68981.0,68980.0,0.75167545]
[1730497349405,0.00264,68981.0,68980.0,0.70835425]
[1730497349631,0.00264,68981.0,68980.0,0.79852743]
[1730497349836,0.00264,68981.0,68980.0,0.75020623]
[1730497351757,0.00264,68981.0,68980.0,0.75520623]
[1730497351975,0.00264,68981.0,68980.0,0.75220623]
[1730497352855,0.00264,68981.0,68980.0,0.75720623]
[1730497353071,0.00264,68981.0,68980.0,0.75220623]
[1730497354399,0.00264,68981.0,68980.0,0.79552743]
[1730497354605,0.00264,68981.0,68980.0,0.80052743]
[1730497354822,0.00264,68981.0,68980.0,0.79552743]
[1730497355470,0.00264,68981.0,68980.0,0.75720623]
[1730497355689,0.00264,68981.0,68980.0,0.75220623]
[1730497355902,0.00264,68981.0,68980.0,0.75720623]
[1730497356114,0.00264,68981.0,68980.0,0.75220623]
[1730497356361,0.00264,68981.0,68980.0,0.95926795]
[1730497356579,0.00264,68981.0,68980.0,0.98592855]
[1730497356815,0.00264,68981.0,68980.0,0.89928614]
[1730497357229,0.00264,68981.0,68980.0,0.98592855]
[1730497357457,0.00264,68981.0,68980.0,1.00758916]
[1730497358364,0.00264,68981.0,68980.0,0.89960978]
[1730497362362,0.00264,68981.0,68980.0,0.90016421]
[1730497364930,1e-06,68981.0,68980.0,0.90016421]
[1730497365140,0.21707513,68994.0,68993.0,0.328042]
[1730497365361,0.21707513,68994.0,68993.0,0.55799825]
[1730497365787,0.21707513,69001.0,69000.0,0.144927]
[1730497366199,0.00164,69004.0,69003.0,0.144921]
[1730497367081,0.00164,69004.0,69003.0,0.149921]
[1730497369078,0.00164,69004.0,69003.0,0.163921]
[1730497369540,0.00164,69004.0,69003.0,0.177921]
[1730497369757,0.00164,69004.0,69003.0,0.163921]
[1730497369966,0.00164,69004.0,69003.0,0.177921]
[1730497378126,0.00164,69004.0,69003.0,0.18081893]
[1730497378546,0.00164,69004.0,69003.0,0.177921]
[1730497379889,0.00164,69004.0,69003.0,0.259121]
[1730497381010,0.00164,69004.0,69003.0,0.359121]
[1730497381457,0.00164,69004.0,69003.0,0.364121]
[1730497381680,0.00164,69004.0,69003.0,0.359121]
[1730497385541,0.00164,69004.0,69003.0,0.364121]
[1730497385811,0.00164,69004.0,69003.0,0.359121]
[1730497387393,0.00164,69004.0,69003.0,0.364121]
[1730497387640,0.00164,69004.0,69003.0,0.359121]
[1730497389424,0.00164,69004.0,69003.0,0.364121]
[1730497389643,0.00164,69004.0,69003.0,0.359121]
[1730497390069,0.00164,69004.0,69003.0,0.364121]
[1730497390324,0.00164,69004.0,69003.0,0.359121]
[1730497391389,0.00164,69004.0,69003.0,0.364121]
[1730497391597,0.00164,69004.0,69003.0,0.359121]
[1730497391806,0.00164,69004.0,69003.0,0.364121]
[1730497392017,0.00164,69004.0,69003.0,0.359121]
[1730497392446,0.00164,69004.0,69003.0,0.364121]
[1730497392917,0.00164,69004.0,69003.0,0.359121]
[1730497393754,0.00164,69004.0,69003.0,0.364121]
[1730497393938,0.00164,69004.0,69003.0,0.359121]
[1730497394414,0.00164,69004.0,69003.0,0.364121]
[1730497394627,0.00164,69004.0,69003.0,0.359121]
[1730497395087,0.00164,69004.0,69003.0,0.364121]
[1730497395299,0.00164,69004.0,69003.0,0.359121]
[1730497395791,0.00164,69004.0,69003.0,0.364121]
[1730497395993,0.00164,69004.0,69003.0,0.359121]
[1730497396768,0.00164,69004.0,69003.0,0.364121]
[1730497397206,0.00164,69004.0,69003.0,0.359121]
[1730497398132,0.00164,69004.0,69003.0,0.364121]
[1730497398560,0.00164,69004.0,69003.0,0.359121]
[1730497399251,0.00164,69004.0,69003.0,0.364121]
[1730497399467,0.00164,69004.0,69003.0,0.359121]
[1730497400111,0.00164,69004.0,69003.0,0.364121]
[1730497400541,0.00164,69004.0,69003.0,0.359121]
[1730497400972,0.00164,69004.0,69003.0,0.364121]
[1730497401199,0.00164,69004.0,69003.0,0.359121]
[1730497401436,0.00164,69004.0,69003.0,0.364121]
[1730497408267,0.00164,69004.0,69003.0,0.40754317]
[1730497409351,0.00164,69004.0,69003.0,0.4075813]
[1730497410226,0.00164,69004.0,69003.0,0.364121]
[1730497410447,0.00164,69004.0,69003.0,0.172921]
[1730497411567,0.00164,69004.0,69003.0,0.260091]
[1730497411792,0.00164,69004.0,69003.0,0.172921]
[1730497413875,0.00164,69004.0,69003.0,0.352921]
[1730497415167,0.00164,69004.0,69003.0,0.254521]
[1730497435235,0.00164,69004.0,69003.0,0.259521]
[1730497435452,0.00164,69004.0,69003.0,0.254521]
[1730497437941,0.00164,69004.0,69003.0,0.259521]
[1730497438147,0.00164,69004.0,69003.0,0.254521]
[1730497440520,0.00164,69004.0,69003.0,0.354021]
[1730497442655,0.00164,69004.0,69003.0,0.359021]
[1730497443341,0.00164,69004.0,69003.0,0.364021]
[1730497447397,0.00164,69004.0,69003.0,0.464021]
[1730497447599,0.00164,69004.0,69003.0,0.459021]
[1730497449110,0.00164,69004.0,69003.0,0.68952625]
[1730497449349,0.00164,69004.0,69003.0,0.91724182]
[1730497449572,0.00164,69004.0,69003.0,0.83028316]
[1730497449785,0.00164,69004.0,69003.0,0.81628316]
[1730497449993,0.00164,69004.0,69003.0,0.80228316]
[1730497450212,0.00164,69004.0,69003.0,0.83028316]
[1730497450421,0.00164,69004.0,69003.0,0.90323605]
[1730497450708,0.00199,69004.0,69003.0,0.81628316]
[1730497450917,0.00199,69004.0,69003.0,0.81677895]
[1730497451128,0.00199,69004.0,69003.0,0.83077895]
[1730497451350,0.00199,69004.0,69003.0,0.91773184]
[1730497451558,0.00199,69004.0,69003.0,0.83077895]
[1730497451780,0.00199,69004.0,69003.0,0.91773184]
[1730497452258,0.00199,69004.0,69003.0,0.93947727]
[1730497452472,0.00199,69004.0,69003.0,0.85981895]
[1730497453103,0.00199,69004.0,69003.0,0.83181895]
[1730497453308,0.00199,69004.0,69003.0,0.86181895]
[1730497453931,0.00199,69004.0,69003.0,0.88961648]
[1730497454355,0.00199,69004.0,69003.0,0.90361648]
[1730497455409,0.00199,69004.0,69003.0,1.03755883]
[1730497455625,0.00199,69004.0,69003.0,1.00955883]
[1730497455836,0.00199,69004.0,69003.0,1.03755883]
[1730497456260,0.00164,69007.0,69005.0,0.549807]
[1730497456470,0.00164,69007.0,69005.0,0.82951495]
[1730497457110,0.00164,69007.0,69005.0,0.82755785]
[1730497457556,0.00164,69007.0,69005.0,0.84155785]
[1730497457751,0.00164,69007.0,69005.0,0.83955785]
[1730497457911,0.00164,69007.0,69005.0,0.84155785]
[1730497458351,0.00164,69007.0,69005.0,0.84146528]
[1730497458558,0.00164,69007.0,69005.0,0.82746528]
[1730497459119,0.00164,69007.0,69005.0,0.84146528]
[1730497459544,0.00164,69007.0,69005.0,0.85546528]
[1730497459761,0.00164,69007.0,69005.0,0.84146528]